{"text_format":"1","workbook":"xlsx","n_sheets":13,"sheets":["Cover ","Introduction ","Index","Definitions-TDLC","TDLC Data Entry","SchB.5","SchB.6","Sch.B.7","Sch.B.8","SchB.10","Sch.B9&B.11&B.12&B.13","Sch.B.14","Comments"],"not_rendered":{"charts":0,"images":0,"macros":1,"external_links":1,"defined_names":97,"comments":6,"pivot_tables":0},"unopened":[],"bounds":{"document_bytes":16777216,"sheet_cells":100000,"rows_first":2000,"rows_last":500,"rows_between":2000,"halvings":0,"cell_chars":16384,"cell_head_chars":4096},"cells_cut":0,"cells_raw":0,"read":"whole","date_system":"1900"}

{"sheet":"Cover ","index":0,"n_rows":27,"n_cols":11,"rows_kept":27,"cut":false,"hidden":false,"merged":[[10,4,10,8],[12,4,12,8],[12,12,12,16],[17,4,17,8],[14,12,14,16],[16,12,16,16]]}
[]
[]
[null,null,"Ministry of Forests, Lands, Natural Resource Operations & Rural Development, Timber Pricing Branch "]
[null,null,"2021 Coastal Crown Low Volume, Community Forest & Woodlot Tenure Management Cost Survey Instructions & Template"]
[]
[null,null,"Cost and Volume Data For Fiscal Year Ending December 31, 2020  (or best fit for cost base 2020) "]
[]
[null,null,"Survey Reporting Period; January 1, to December 31, of the Reporting Year. Report each of 2017, 2018, 2019 and 2020 on separate worktabs within the workbook."]
[]
[]
[]
[]
[null,null,"Licensee: ",null,null,null,null,null,null,null,"Licensee contact: "]
[]
[null,null,"Reporting Period ",null,"From:",null,"To:",null,null,null,"Contact Email:"]
[null,null,"( Month / Year )"]
[null,null,null,null,null,null,null,null,null,null,"Contact Tel #: "]
[null,null,"Licences: "]
[]
[null,null,"Data Certifier (Name)",null,null,null,null,null,null,null,"Signature: "]
[null,null,"CPA  (British Columbia licensed Compilations, Review or Assurance professional)"]
[]
[null,null,"Data Certifier (Name)",null,null,null,null,null,null,null,"Signature: "]
[null,null,"Qualified BC RPF or RFP"]
[]
[]
[null,null,"Note: This workbook / schedule is considered  confidential once populated with data"]

{"sheet":"Introduction ","index":1,"n_rows":11,"n_cols":3,"rows_kept":11,"cut":false,"hidden":false,"merged":[]}
[]
["Introduction To The Coast Crown Tenure Management Woodlot, Community Forest & Low Volume Cost Survey"]
[]
["The Coast  Crown Tenure Management  Woodlot, Community Forest & Low Volume Cost Survey forms an integral part of the set of surveys, that provide the data support for the Coast Appraisal Manual and other economic analyses of the ministry. Although this  cost surveys is a stand alone survey, all manners, times and matters including detailed data definitions are directed by the instructions to the primary, main, long form, comprehensive 2021 Coast Crown Tenure Management Cost Survey instructions and must be consulted on all matters if required.  For a general overview of the of the surveys, please read the the introductory pages of the primary. main cost survey instructions at: "]
[" https://www2.gov.bc.ca/gov/content/industry/forestry/competitive-forest-industry/timber-pricing/coast-timber-pricing/coast-crown-tenure-mgmt-cost-survey"]
["For specific definitions for Total Delivered Log Cost (TDLC) short form, refer to the definitions found within the blue tabs of  this survey work book. For all other schedules refer to the main 2021cost survey instructions. Duplicate the  2021 workbook  tabs to data enter years 2017 and 2020 inclusive.  For cost survey preparation support/company specific training, please email the program email box at: FORCLCS@Victoria1.gov.bc.ca"]
["Data Protection Standard of the Province of British Columbia, please refer to Section 6 of the main survey instructions. ",null,"Survey Reporting Period; January 1, to December 31, of the Reporting Year. Report each of 2017, 2018, 2019 and 2020 on separate worktabs within the workbook."]
[]
["Submission: The deadline is 4pm PST on June 30, 2021 to email: FORCLCS@Victoria1.gov.bc.ca. Community Forest Association members who have not received a data request for the survey in the past 10 years and who are not addressed to participate under the letter \"Main  Survey\" for 2021 may submit by December 31, 2021."]
[]
["Copyright Province of British Columbia April 2021"]

{"sheet":"Index","index":2,"n_rows":29,"n_cols":6,"rows_kept":29,"cut":false,"hidden":false,"merged":[]}
["2021 Coast Crown Tenure Management Cost Survey Templates (cost base 2020)"]
["Ministry of Forests, Lands & Natural Resource Operations & Rural Development, Timber Pricing Branch "]
[]
[null,"Index of Schedules "]
[]
[null,"Schedule Number ",null,"Name of Schedule ","Report Category ","Location of Definitions "]
[null,"Schedule ","A.1/A.2 ","Direct Logging Costs: Client Crew Teams, Single (A.1) & Multi Phase Contractors (A.2)","Total Delivered Log Cost ","Definitions Within This WorkBook & Further Detail Within Main Survey "]
[null,"Schedule ","A.3","Indirect Logging Costs ","Total Delivered Log Cost ","Definitions Within This WorkBook & Further Detail Within Main Survey "]
[null,"Schedule ","A.4","Total Delivered Log Cost (TDLC) & Stumpage, Rents & Fees Detail","Total Delivered Log Cost ","Definitions Within This WorkBook & Further Detail Within Main Survey "]
[null,"Schedule ","B.1","Road Management (RM)","Tenure Obligation Adjustment ","Detailed Definitions Within Main Survey Instructions "]
[null,"Schedule ","B.2","Engineering & Forestry (F&E)","Tenure Obligation Adjustment ","Detailed Definitions Within Main Survey Instructions "]
[null,"Schedule ","B.3","Corporate General & Administration (G&A)","Tenure Obligation Adjustment ","Detailed Definitions Within Main Survey Instructions "]
[null,"Schedule ","B.4","Silviculture Expenses & Reforestation Liability (SRL)","Tenure Obligation Adjustment ","Detailed Definitions Within Main Survey Instructions "]
[null,"Schedule ","B.5","Road Survey (RS)","Tenure Obligation Adjustment ","Detailed Definitions Within Main Survey Instructions "]
[null,"Schedule ","B.6","Bridges (BS)","Tenure Obligation Adjustment ","Detailed Definitions Within Main Survey Instructions "]
[null,"Schedule ","B.7","Wood Culverts (WC)","Tenure Obligation Adjustment ","Detailed Definitions Within Main Survey Instructions "]
[null,"Schedule ","B.8","Off Highway Logging Truck & Lowbeds (OHLTL)","Tenure Obligation Adjustment ","Detailed Definitions Within Main Survey Instructions "]
[null,"Schedule ","B.9","Inland Water Transportation (IW) (Grouped into a single workbook tab)","Specified Operation ","Detailed Definitions Within Main Survey Instructions "]
[null,"Schedule ","B.10","Barging or Towing to Final Destination (B&T)","Specified Operation ","Detailed Definitions Within Main Survey Instructions "]
[null,"Schedule ","B.11","Helicopter Single Standing Stem Selection (HSSSS) (Grouped into a single workbook tab)","Specified Operation ","Detailed Definitions Within Main Survey Instructions "]
[null,"Schedule ","B.12","Skyline (SL) (Grouped into a single workbook tab)","Specified Operation ","Detailed Definitions Within Main Survey Instructions "]
[null,"Schedule ","B.13","Tree Crown Modification (TCM) (Grouped into a single workbook tab)","Specified Operation ","Detailed Definitions Within Main Survey Instructions "]
[null,"Schedule ","B.14","Destumping For Root Disease Control with BEC (DRDC & BEC)","Specified Operation ","Detailed Definitions Within Main Survey Instructions "]
[]
[null,"Note: The workbook tabs are not formatted for printing. "]
[null,"Some calculations auto-populate, but please confirm all extensions of calculations."]
[null,"All values are to brought-forward with no duplication of values between the B Schedules."]
[null,"Please retain a copy of the completed template for the business data retention period with supporting documentation."]
[null,"This template is deemed confidential under Section 136 of the Forest Act once populated with data."]

{"sheet":"Definitions-TDLC","index":3,"n_rows":37,"n_cols":4,"rows_kept":37,"cut":false,"hidden":false,"merged":[[7,0,10,0],[11,0,12,0],[0,0,0,3],[2,0,2,3],[37,0,37,3],[13,0,13,3],[19,0,19,3],[1,0,1,3],[14,0,15,0],[32,0,36,0],[20,0,24,0],[25,0,31,0],[16,0,18,0],[3,0,3,1],[16,3,18,3],[4,3,6,3],[4,0,6,0]]}
["2021 Coast Crown Tenure Management Low Volume & Woodlot Cost Survey  Instructions "]
["Definitions For Total Delivered Log Costs (TDLC) "]
[]
["Category ",null,"Quick Reference Definition ","Information / Tip Word For Document Search "]
["Survey(s)","Comprehensive Survey ","2021 Coast Crown Tenure Management Cost Survey (CCTMCS) Instructions & Template. Refer to the link on the right. Provides full detailed guidance for any category or term."," https://www2.gov.bc.ca/gov/content/industry/forestry/competitive-forest-industry/timber-pricing/coast-timber-pricing/coast-crown-tenure-mgmt-cost-survey  For additional information or detailed definitions refer to the comprehensive survey instructions; see above link. The tips to each category refer to sections or page numbers within these instructions "]
[null,"Low Volume Survey ","2021 Coast Crown Tenure Management Low Volume (LV) Cost Survey (cost base 2020). Refer to  these instructions below on this workbook tab and populate this template. Forest tenure holders with tenures that do not have the tenure obligations of forest planning and administration, road development, road maintenance and silviculture, and that are not BCTS licences, are not required to participate in the 2021 Coast Crown Tenure Management Cost Survey."]
[null,"Woodlot Survey ","2021 Coast Crown Tenure Management Woodlot (WL) Cost Survey (cost base 2020). Refer to these instructions below on this workbook tab and populate this template."]
["Cover ","Reporting Period ","Survey Reporting Period; January 1, to December 31, of the Reporting Year. Report each of 2017, 2018, 2019 and 2020 on separate worktabs within the workbook.","Or closest fit when the fiscal year end is not December 31, 2020 "]
[null,"Licenses ","List the licenses that are being reported on.","If reporting for partners list these licenses as well if reported"]
[null,"Licensee Contact","Provide the contact name, contact email address and telephone number for the survey.","Note the partners of any partnership or joint venture "]
[null,"Certification ","Certification must be made by a Chartered Professional Accountant (CPA) and a  Registered Forest Professional(RFP)","Where a CPA or RFP are not available, signature is to be from a Company Officer"]
["Survey Procedures","Survey Procedure","Populate the data cells of the green tabs of the workbook labelled 2020TDLC, 2020Spec.Ops & Barge Tow in accordance with the definitions noted within this workbook or the more detailed definitions noted within the instruction to the main 2021 Coast Crown Tenure survey.","Duplicate the 2020TDLC and 2020Spec.Ops for the data years 2017, 2018. The Barge and Tow tab will take all years of data."]
[null,"Submission ","Submit populated template(s) / workbook  by 4pm PST, June 30, 2021 to: ","FORCLCS@Victoria1.gov.bc.ca"]
[]
["Areas","Districts ","DCR: Campbell River Natural Resource District; DC: Chilliwack Natural Resource District; DKM: Coast Mountain Natural Resource District; DNI: North Island - Central Coast Natural Resource District; DHG: Haida Gwaii Natural Resource District; DSI: South Island Natural Resource District; DSQ: Sunshine Coast Natural Resource District","Eco-System Based Management EBM "]
[null,"Ecosystem Based Management EBM ","Some districts are split between EBM and Non-EBM areas. Please refer to the Coast Appraisal Manual page XXX for the definition of Eco-System Based Management. ","Forest District "]
["Volumes ","AAC Volume ","Client's Provincial Crown Allowable Annual Cut Volume in cubic meters (m3)","https://www2.gov.bc.ca/gov/content/industry/forestry/competitive-forest-industry/timber-pricing/harvest-billing-system"]
[null,"Harvest / Production Volume (m3)","Client's Provincial Crown Production Volume in cubic meters (m3) "]
[null,"Waste Volume ","Client's Provincial Crown Waste Volume in cubic meters (m3) "]
[]
["Schedule A1 & A2 ","Total Direct Costs For Single & Multi-Contractor Costs ","Category: Total of Stump to Dump annual log operations costs for Provincial Crown Volume reported.","Schedule A.1 and A.2 (Company Crew or Single & Multi-phase Contractor Costs. All combined) "]
[null,"Company Own & Contractor Costs Single & Multi-Phase","Total dollar cost of these stump to dump phases excluding the specific phases noted elsewhere Schedule A1, A2, A3, A4; includes heli-logging.","Single-Phase; Multi-Phase; Schedule A.1; Schedule A.2 "]
[null,"Sorting, Booming & Storage ","Total dollar cost associated with these phases excluding scaling.","Sort; Boom; Storage"]
[null,"Transport ","Total dollar cost of all forms of transport (barging; towing; truck hauling) used to transport logs. ","Hauling; Inland Water; Towing; Barging; Storage "]
[null,"Other Costs ","Total dollar cost of activities not specifically noted within the definitions above for  this Schedule but pertain to single and multi-phase contractor costs.","Other Costs"]
["Schedule A3 ","Total In-Direct Costs (includes use of contractors)","Category: Indirect Costs can include multi-year pro-rated costs including Camp Costs  but excludes General & Administrative Costs for Provincial Crown Volume reported.","Schedule A.3"]
[null,"Road Construction / Development Costs ","Total dollar cost of road, bridge and log dump construction for primary, secondary, spur and spar roads including betterments etc.","Road; Bridge; Log Dumps; Schedule A.3"]
[null,"Road Management ","Total dollar costs of annual road management which include snow ploughing, allowable culvert replacement, de-activation etc. It does not include road betterment.","Road Management; Schedule B.1"]
[null,"Forest Planning","Total dollar costs of Forest Planning and Cut Block Layout. Includes Forest Health and Forest Management and includes Fire Protection. ","Engineering and Forestry; Schedule B.2; "]
[null,"Silviculture Spending & Accrual ","Total dollar costs of Silviculture including Incremental and Enhanced costs.","Silviculture; Schedule B.4"]
[null,"Camp Costs ","Total dollar cost of running camps not included within other phases.","See Camp Costs Main Survey "]
[null,"Other Costs ","Total dollar cost of activities not specifically noted within the definitions above for  this Schedule but pertain to single and multi-phase contractor costs. Include Scaling and Waste Assessment costs.","Other Costs"]
["Schedule A4 ","Total Stumpage, Rents and Taxes ","Category: Corporate Stumpage, Rents, Fees and Corporate Overhead that is not Camp Overhead for Provincial Crown Volume reported.","Schedule A.4 (Stumpage, Rents & Fees) & Schedule B.3 (General & Administrative Expenses)"]
[null,"Stumpage, Rents & Fees","Total dollar cost of stumpage, rents and fees pertaining to municipal, provincial, federal or private sources.","Schedule A.4; Stumpage; Rents; Fees "]
[null,"Log Trading & Supply ","Total costs of Log Trading and Supply including broker fees but excluding the components of any revenue sharing agreement.","Schedule B.3 Log Trading & Supply"]
[null,"Corporate General & Administrative Overhead (non-camp) ","Total cost of General & Administrative overhead, excluding Camp Costs, Executive, Proprietary, Investing or Financing  Costs, Advertising, Bonuses, Non-tenure related Legal Costs etc.; see Appendix A of the main cost survey instructions for an extensive list of dis-allowed costs.","Schedule B.3; Corporate General Administrative "]
[null,"Total Delivered Log Cost (TDLC)","This is the sum total of (operating) dollars reported for the A Schedules. The dollars do not include mill or other non-logging divisions / functions costs, other than allocated overhead.  This value must be reconcilable to the management operating financial statements.","Total Delivered Log Cost; Schedule A.4"]

{"sheet":"TDLC Data Entry","index":4,"n_rows":36,"n_cols":14,"rows_kept":36,"cut":false,"hidden":false,"merged":[[31,1,31,8],[32,1,32,8],[33,1,33,8],[34,1,34,8],[35,1,35,8],[4,2,4,13],[8,0,12,0],[13,0,19,0],[20,0,23,0],[30,1,30,8],[29,1,29,8],[25,1,25,12],[24,0,26,0],[24,1,24,12],[5,0,7,0]]}
["Total Delivered Log Cost Data Entry Sheet "]
["Refer to the definitions tab within this work book  for the definitions, and populate the template below."]
["The definitions are noted to each Category cell below. "]
["Cost Base","District ","DCR-NonEBM","DCR-EBM","DCK","DNC-EBM","DNI-NonEBM","DNI-EBM","DHG-EBM","DSI-NonEBM","DSI-Clay^","DSQ","DSC","Total Dollars"]
["2020 TDLC","Category (scrolls up)"]
["Volumes ","Harvest / Production Volume (m3)",null,null,null,null,null,null,null,null,null,null,null,{"$f":"SUM(C6:M6)","v":0}]
[null,"Waste Volume (m3)"]
[null,"Allowable Annual Cut (m3)",null,null,null,null,null,null,null,null,null,null,null,{"$f":"SUM(C8:M8)","v":0}]
["Schedule A1 & A2 ","Company Own & Contractor Costs; Single & Multi-Phase; Stump to Dump",null,null,null,null,null,null,null,null,null,null,null,0]
[null,"Sorting, Scaling, Booming & Storage ",null,null,null,null,null,null,null,null,null,null,null,0]
[null,"Transport ",null,null,null,null,null,null,null,null,null,null,null,0]
[null,"Other Costs ",null,null,null,null,null,null,null,null,null,null,null,0]
[null,"Total Direct Costs For Single & Multi-Contractor Costs ",{"$f":"SUM(C9:C12)","v":0},{"$f":"SUM(D9:D12)","v":0},0,0,0,0,0,0,0,0,0,0]
["Schedule A3 ","Road, Bridge, Log Dump Construction / Development Costs ",null,null,null,null,null,null,null,null,null,null,null,0]
[null,"Road Mangement ",null,null,null,null,null,null,null,null,null,null,null,0]
[null,"Forest Planning & Contract Control",null,null,null,null,null,null,null,null,null,null,null,0]
[null,"Silviculture Spending & Accrual (incl: Incremental & Enhanced)",null,null,null,null,null,null,null,null,null,null,null,0]
[null,"Camp Costs (not reported under Schedule A1 & A2)",null,null,null,null,null,null,null,null,null,null,null,0]
[null,"Other Costs (e.g. Amortization; Depreciation etc.)",null,null,null,null,null,null,null,null,null,null,null,0]
[null,"Total In-Direct Costs (includes use of contractors)",{"$f":"SUM(C14:C19)","v":0},{"$f":"SUM(D14:D19)","v":0},0,0,0,0,0,0,0,0,0,0]
["Schedule A4 ","Stumpage, Rents & Fees",null,null,null,null,null,null,null,null,null,null,null,0]
[null,"Log Trading & Supply",null,null,null,null,null,null,null,null,null,null,null,0]
[null,"General & Administrative Overhead",null,null,null,null,null,null,null,null,null,null,null,0]
[null,"Total Stumpage, Rents and Taxes ",{"$f":"SUM(C21:C23)","v":0},{"$f":"SUM(D21:D23)","v":0},0,0,0,0,0,0,0,0,0,0]
["TDLC ","Total Delivered Log Cost ",null,null,null,null,null,null,null,null,null,null,null,{"$f":"N13+N20+N24","v":0}]
[null,"Note total company expenditures ( dollars ) from the Income and Expenditures statement"]
[null,"Reconciling Items ( total dollars of all items )"]
[]
[null,"Complete the following boxes: "]
[null,"If license is managed under a Partnership or Joint Venture, provide the names of partners:"]
[null,"If the license is managed by third parties, the name of the forest manager:"]
[null,"Name of stump to dump contractor if applicable:"]
[null,"Name of log broker if applicable:"]
[null,"If there was curtailment to business in  any of the years 2017, 2018, 2020, then please make notes on the nature of this situation to the comments tab."]
[null,"A note regarding the nature of the reconciling items as a note to the comments tab; this is the reconciling variance of TDLC  to the expenses section of the financial statement "]
[null,"Attach a copy of the company Income and Expenditures statement and budget for each reporting year."]

{"sheet":"SchB.5","index":5,"n_rows":132,"n_cols":23,"rows_kept":132,"cut":false,"hidden":false,"merged":[[6,3,6,5],[7,0,7,1],[7,3,7,5],[32,3,36,12],[9,0,9,12]]}
["Schedule B.5"]
["Instructions: Refer to the definitions found within the Main, Primary, Long Form Survey Instructions for 2021 to complete this workbook tab"]
["Road Survey (RS)"]
[null,null,null,null,null,null,null,"Use only this spreadsheet for your submission;  One sheet per CONTRACT.  "]
[null,null,null,null,null,null,null,"Red Carat notes have been provided for guidance. "]
[null,"_____of______","Sheets  (e.g. 1 of 5 sheets)",null,null,null,null,"Only information from \"Bank Height Method\" contracts are eligible."]
["Contractor (name):",null,null,null,null,null,null,"Fill in ALL columns"]
["Contract  #:",null,null,null,null,null,null,"Certification of Submitting Forest Professional "]
[]
["Please view message pane at end of row to ensure data has been entered correctly & Manually Save before closing file. Formatting: Not all categories will have costs assigned. But, if there are costs, then the entire row must be populated. "]
["Line","District ","Point of Origin Area* ","Location                 TSB** or TFL/Block","Isolated or Accessible","EBM or Non-EBM","Company Operation or  BCTS Business Area","Bank height  Construction Category","Rock Hardness","Cost\n($.$$)","Length\n (m)","$/Metre","Ballast Haul Distance (km)",null,null,null,null,"**TSB List",null,null,null,"*Point of Origin Area List"]
[1,null,null,null,null,null,null,"OM-LB",null,null,null,{"$f":"IF(ISBLANK(J12),\"\",(IF(ISBLANK(K12),\"\",J12/K12)))","v":""},null,{"$f":"COUNTBLANK($B12:$M12)","v":11},null,null,null,"25E",null,null,null,"BKCL","Barkley-Clayoquot"]
[2,null,null,null,null,null,null,"OM-PR",null,null,null,{"$f":"IF(ISBLANK(J13),\"\",(IF(ISBLANK(K13),\"\",J13/K13)))","v":""},null,11,null,null,null,"30E","Nahatlatch",null,null,"BUTE","Bute Inlet"]
[3,null,null,null,null,null,null,"OM-RB","S/M",null,null,{"$f":"IF(ISBLANK(J14),\"\",(IF(ISBLANK(K14),\"\",J14/K14)))","v":""},null,10,{"$f":"IF(N14=0,\"Entry Complete\",IF(AND(N14>0,N14<10),\"Entry in progress\",IF(N14=10,\"\")))","v":""},null,null,"30G","Upper Pitt",null,null,"CHSH","Chilliwack-Silverhope"]
[4,null,null,null,null,null,null,"TOE","S/M",null,null,{"$f":"IF(ISBLANK(J15),\"\",(IF(ISBLANK(K15),\"\",J15/K15)))","v":""},null,10,{"$f":"IF(N15=0,\"Entry Complete\",IF(AND(N15>0,N15<10),\"Entry in progress\",IF(N15=10,\"\")))","v":""},null,null,"30H","Maple Ridge",null,null,"COCO","Courtney-Comox"]
[5,null,null,null,null,null,null,"MRK","S/M",null,null,{"$f":"IF(ISBLANK(J16),\"\",(IF(ISBLANK(K16),\"\",J16/K16)))","v":""},null,10,{"$f":"IF(N16=0,\"Entry Complete\",IF(AND(N16>0,N16<10),\"Entry in progress\",IF(N16=10,\"\")))","v":""},null,null,"30I","Chilliwack-Silverhope",null,null,"DEWD","Dewdney"]
[6,null,null,null,null,null,null,"HRK","S/M",null,null,null,null,10,null,null,null,"31B","Port Douglas",null,null,"DRSE","Drury-Seymour"]
[7,null,null,null,null,null,null,"XRK","S/M",null,null,null,null,10,null,null,null,"31D","Squamish-Pemberton",null,null,"ESPE","Esperanza"]
[8,null,null,null,null,null,null,"XXRK","S/M",null,null,{"$f":"IF(ISBLANK(J19),\"\",(IF(ISBLANK(K19),\"\",J19/K19)))","v":""},null,10,{"$f":"IF(N19=0,\"Entry Complete\",IF(AND(N19>0,N19<10),\"Entry in progress\",IF(N19=10,\"\")))","v":""},null,null,"38A","Barkley",null,null,"GKIN","Gilford-Knight"]
[9,null,null,null,null,null,null,"XXXRK","S/M",null,null,"",null,10,"",null,null,"38B","Nanaimo",null,null,"GRIS","Graham Island"]
[10,null,null,null,null,null,null,"OM-RB","Hard",null,null,"",null,10,"",null,null,"38C","Cowichan",null,null,"HARR","Harrison"]
[11,null,null,null,null,null,null,"TOE","Hard",null,null,"",null,10,"",null,null,"39C","Powell River",null,null,"JEIS","Jervis-Sechelt"]
[12,null,null,null,null,null,null,"MRK","Hard",null,null,"",null,10,"",null,null,"46A",null,null,null,"JUDF","Juan de Fuca"]
[13,null,null,null,null,null,null,"HRK","Hard",null,null,"",null,10,"",null,null,"46B",null,null,null,"KEAD","Kelsey-Adam"]
[14,null,null,null,null,null,null,"XRK","Hard",null,null,"",null,10,"",null,null,"46C",null,null,null,"KOKI","Kokish"]
[15,null,null,null,null,null,null,"XXRK","Hard",null,null,"",null,10,"",null,null,"46D",null,null,null,"LOMD","Lower Mainland"]
[16,null,null,null,null,null,null,"XXXRK","Hard",null,null,"",null,10,"",null,null,"46E",null,null,null,"MESF","Menzies-Sayward Forest"]
[null,null,null,null,null,null,null,null,null,null,null,null,null,null,null,null,null,"46F",null,null,null,"NTHC","North Coast"]
[null,null,null,null,null,null,null,null,null,null,null,null,null,null,null,null,null,"46G","Stewart",null,null,"PIME","Pitt Meadows"]
[null,null,null,null,null,null,null,null,null,null,null,null,null,null,null,null,null,"46H","Alice Arm",null,null,"POMH","Port McNeill-Hardy"]
[null,null,null,null,null,null,null,null,null,null,null,null,null,null,null,null,null,"46I","Skeena",null,null,"QUSO","Quatsino Sound"]
[null,null,null,"Space For Additional Comments:",null,null,null,null,null,null,null,null,null,null,null,null,null,"46J","Outer Coast",null,null,"SLOQ","Sloquet"]
[null,null,null,null,null,null,null,null,null,null,null,null,null,null,null,null,null,"46K","Douglas",null,null,"SEVI","Southeast Vancouver Island"]
[null,null,null,null,null,null,null,null,null,null,null,null,null,null,null,null,null,"47A","Seymour",null,null,"SPLK","Sproat Lake"]
[null,null,null,null,null,null,null,null,null,null,null,null,null,null,null,null,null,"47B","Broughton",null,null,"SQPM","Squamish-Pemberton"]
[null,null,null,null,null,null,null,null,null,null,null,null,null,null,null,null,null,"47C","Klinaklini",null,null,"SUCO","Sunshine Coast"]
[null,null,null,null,null,null,null,null,null,null,null,null,null,null,null,null,null,"47D","Loughborough",null,null,"THUR","Thurlow"]
[null,null,null,null,null,null,null,null,null,null,null,null,null,null,null,null,null,"48A","Brooks"]
[null,null,null,null,null,null,null,null,null,null,null,null,null,null,null,null,null,"48B","Cape Scott"]
[null,null,null,null,null,null,null,null,null,null,"Note: This workbook / schedule is confidential once populated with data",null,null,null,null,null,null,"48C","Broughton"]
[null,null,null,null,null,null,null,null,null,null,null,null,null,null,null,null,null,"48D","Sayward"]
[null,null,null,null,null,null,null,null,null,null,null,null,null,null,null,null,null,"48E","Kyuquot"]
[]
[]
[]
[]
[]
[]
[]
[]
[]
[]
[]
[]
[]
[]
[]
[]
[]
[]
[]
[]
[]
[]
[]
[]
[]
[]
[]
[]
[]
[]
[]
[]
[]
[]
[]
[]
[]
[]
[]
[]
[]
[]
[]
[]
[]
[]
[]
[]
[]
[]
[]
[]
[]
[]
[]
["Dropdown Lists"]
[]
[]
[null,"District ",null,"Isolated or Accessible","EBM or Non-EBM",null,null,null,null,null,null,null,"Ballast Haul Distance List"]
[null,"DCK",null,{"$f":"R12 & \" \" &  S12","v":"25E "},"Accessible","EBM",null,null,null,null,null,null,"0- 1.0 km"]
[null,"DSC",null,"30E Nahatlatch","Isolated","Non-EBM",null,null,null,null,null,null,"1.001 km - 1.5 km"]
[null,"DHG",null,"30G Upper Pitt",null,null,null,null,null,null,null,null,"1.501 - 2.0 km"]
[null,"DNI",null,"30H Maple Ridge",null,null,null,null,null,null,null,null,"2.001 km - 3.2 km"]
[null,"DKM",null,"30I Chilliwack-Silverhope",null,null,null,null,null,null,null,null,"> 3.2 km"]
[null,"DSI",null,"31B Port Douglas"]
[null,"DCR",null,"31D Squamish-Pemberton"]
[null,"DSQ",null,"38A Barkley"]
[null,null,null,"38B Nanaimo"]
[null,null,null,"38C Cowichan"]
[null,null,null,"39C Powell River"]
[null,null,null,"46A "]
[null,null,null,"46B "]
[null,null,null,"46C "]
[null,null,null,"46D "]
[null,null,null,"46E "]
[null,null,null,"46F "]
[null,null,null,"46G Stewart"]
[null,null,null,"46H Alice Arm"]
[null,null,null,"46I Skeena"]
[null,null,null,"46J Outer Coast"]
[null,null,null,"46K Douglas"]
[null,null,null,"47A Seymour"]
[null,null,null,"47B Broughton"]
[null,null,null,"47C Klinaklini"]
[null,null,null,"47D Loughborough"]
[null,null,null,"48A Brooks"]
[null,null,null,"48B Cape Scott"]
[null,null,null,"48C Broughton"]
[null,null,null,"48D Sayward"]
[null,null,null,"48E Kyuquot"]

{"sheet":"SchB.6","index":6,"n_rows":143,"n_cols":23,"rows_kept":143,"cut":false,"hidden":false,"merged":[[27,3,31,10],[4,9,4,11],[7,9,7,12],[7,13,8,14],[7,15,8,17],[8,9,8,10],[8,11,8,12],[8,0,8,8]]}
["Schedule B.6"]
["Instructions: Refer to the definitions found within the Main, Primary, Long Form Survey Instructions for 2021 to complete this workbook tab"]
["Bridge Survey (BS)"]
[]
[null,"_____of_____","Sheets (e.g. 1 of 5 sheets)",null,null,"Certification of Submitting Forest Professional:",null,null,null,null,null,null,"(name of Forest Professional)"]
[]
[]
["Notes: Please view message pane at end of row to ensure data has been entered correctly & Manually Save before closing file.",null,null,null,null,null,null,null,null,"Superstructure",null,null,null,"Substructure",null,"Cost of Bridge ($)"]
["Use only this spreadsheet for your submission; Red Carats have been provided for guidance; Costs reflect NEW bridges at NEW locations; Fill in ALL columns;",null,null,null,null,null,null,null,null,"Girder/Stringer",null,"Deck"]
["Line","Bridge Structure ID","District ","Company Operation Name \nor \nBCTS Business Area","EBM or Non-EBM","Road Name","Road Station","Bridge Type","Design Load Capacity \n(L60-L175)","Material","Length (m) ","Material ","Width (m)","Material  ","Height (m) ","Bridge Supply Cost ($)","Bridge Planning and Installation (Approach Works) ($)","Total Bridge Cost ($)"]
[1,null,null,null,null,null,null,null,null,null,null,null,null,null,null,null,null,{"$f":"Table2[[#This Row],[Bridge Supply Cost ($)]]+Table2[[#This Row],[Bridge Planning and Installation (Approach Works) ($)]]","v":0},{"$f":"COUNTBLANK($B11:$R11)","v":16},{"$f":"_xlfn.IFS(AND(S11=0, U11=\"\"), \"Entry Complete\", AND(S11=0, U11<>\"\"), \"Entry Incomplete\", AND(S11>0, S11<16), \"Entry in progress\",S11=16, \"\")","v":""},{"$f":"IF(V11 <> \"\",V11, W11)","v":""},{"$f":"IF(AND(Table2[[#This Row],[Bridge Type]]=\"Log\", Table2[[#This Row],[Width (m)]] > 5.5),\"If Bridge Type is Log, Deck Width must be <= 5.5m\",\"\")","v":""},{"$f":"IF(AND(OR(Table2[[#This Row],[Bridge Type]]=(\"Permanent\"),Table2[[#This Row],[Bridge Type]]=(\"Portable\")), Table2[[#This Row],[Width (m)]] >4.9),\"If Bridge Type is Permanent/Portable, Deck Width must be <= 4.9m\",\"\")","v":""}]
[2,null,null,null,null,null,null,null,null,null,null,null,null,null,null,null,null,{"$f":"Table2[[#This Row],[Bridge Supply Cost ($)]]+Table2[[#This Row],[Bridge Planning and Installation (Approach Works) ($)]]","v":0},16,"","",{"$f":"IF(AND(Table2[[#This Row],[Bridge Type]]=\"Log\", Table2[[#This Row],[Width (m)]] > 5.5),\"If Bridge Type is Log, Deck Width must be <= 5.5m\",\"\")","v":""},{"$f":"IF(AND(OR(Table2[[#This Row],[Bridge Type]]=(\"Permanent\"),Table2[[#This Row],[Bridge Type]]=(\"Portable\")), Table2[[#This Row],[Width (m)]] >4.9),\"If Bridge Type is Permanent/Portable, Deck Width must be <= 4.9m\",\"\")","v":""}]
[3,null,null,null,null,null,null,null,null,null,null,null,null,null,null,null,null,{"$f":"Table2[[#This Row],[Bridge Supply Cost ($)]]+Table2[[#This Row],[Bridge Planning and Installation (Approach Works) ($)]]","v":0},16,"","",{"$f":"IF(AND(Table2[[#This Row],[Bridge Type]]=\"Log\", Table2[[#This Row],[Width (m)]] > 5.5),\"If Bridge Type is Log, Deck Width must be <= 5.5m\",\"\")","v":""},{"$f":"IF(AND(OR(Table2[[#This Row],[Bridge Type]]=(\"Permanent\"),Table2[[#This Row],[Bridge Type]]=(\"Portable\")), Table2[[#This Row],[Width (m)]] >4.9),\"If Bridge Type is Permanent/Portable, Deck Width must be <= 4.9m\",\"\")","v":""}]
[4,null,null,null,null,null,null,null,null,null,null,null,null,null,null,null,null,{"$f":"Table2[[#This Row],[Bridge Supply Cost ($)]]+Table2[[#This Row],[Bridge Planning and Installation (Approach Works) ($)]]","v":0},16,"","",{"$f":"IF(AND(Table2[[#This Row],[Bridge Type]]=\"Log\", Table2[[#This Row],[Width (m)]] > 5.5),\"If Bridge Type is Log, Deck Width must be <= 5.5m\",\"\")","v":""},{"$f":"IF(AND(OR(Table2[[#This Row],[Bridge Type]]=(\"Permanent\"),Table2[[#This Row],[Bridge Type]]=(\"Portable\")), Table2[[#This Row],[Width (m)]] >4.9),\"If Bridge Type is Permanent/Portable, Deck Width must be <= 4.9m\",\"\")","v":""}]
[5,null,null,null,null,null,null,null,null,null,null,null,null,null,null,null,null,{"$f":"Table2[[#This Row],[Bridge Supply Cost ($)]]+Table2[[#This Row],[Bridge Planning and Installation (Approach Works) ($)]]","v":0},16,"","",{"$f":"IF(AND(Table2[[#This Row],[Bridge Type]]=\"Log\", Table2[[#This Row],[Width (m)]] > 5.5),\"If Bridge Type is Log, Deck Width must be <= 5.5m\",\"\")","v":""},{"$f":"IF(AND(OR(Table2[[#This Row],[Bridge Type]]=(\"Permanent\"),Table2[[#This Row],[Bridge Type]]=(\"Portable\")), Table2[[#This Row],[Width (m)]] >4.9),\"If Bridge Type is Permanent/Portable, Deck Width must be <= 4.9m\",\"\")","v":""}]
[6,null,null,null,null,null,null,null,null,null,null,null,null,null,null,null,null,{"$f":"Table2[[#This Row],[Bridge Supply Cost ($)]]+Table2[[#This Row],[Bridge Planning and Installation (Approach Works) ($)]]","v":0},16,"","",{"$f":"IF(AND(Table2[[#This Row],[Bridge Type]]=\"Log\", Table2[[#This Row],[Width (m)]] > 5.5),\"If Bridge Type is Log, Deck Width must be <= 5.5m\",\"\")","v":""},{"$f":"IF(AND(OR(Table2[[#This Row],[Bridge Type]]=(\"Permanent\"),Table2[[#This Row],[Bridge Type]]=(\"Portable\")), Table2[[#This Row],[Width (m)]] >4.9),\"If Bridge Type is Permanent/Portable, Deck Width must be <= 4.9m\",\"\")","v":""}]
[7,null,null,null,null,null,null,null,null,null,null,null,null,null,null,null,null,{"$f":"Table2[[#This Row],[Bridge Supply Cost ($)]]+Table2[[#This Row],[Bridge Planning and Installation (Approach Works) ($)]]","v":0},16,"","",{"$f":"IF(AND(Table2[[#This Row],[Bridge Type]]=\"Log\", Table2[[#This Row],[Width (m)]] > 5.5),\"If Bridge Type is Log, Deck Width must be <= 5.5m\",\"\")","v":""},{"$f":"IF(AND(OR(Table2[[#This Row],[Bridge Type]]=(\"Permanent\"),Table2[[#This Row],[Bridge Type]]=(\"Portable\")), Table2[[#This Row],[Width (m)]] >4.9),\"If Bridge Type is Permanent/Portable, Deck Width must be <= 4.9m\",\"\")","v":""}]
[8,null,null,null,null,null,null,null,null,null,null,null,null,null,null,null,null,{"$f":"Table2[[#This Row],[Bridge Supply Cost ($)]]+Table2[[#This Row],[Bridge Planning and Installation (Approach Works) ($)]]","v":0},16,"","",{"$f":"IF(AND(Table2[[#This Row],[Bridge Type]]=\"Log\", Table2[[#This Row],[Width (m)]] > 5.5),\"If Bridge Type is Log, Deck Width must be <= 5.5m\",\"\")","v":""},{"$f":"IF(AND(OR(Table2[[#This Row],[Bridge Type]]=(\"Permanent\"),Table2[[#This Row],[Bridge Type]]=(\"Portable\")), Table2[[#This Row],[Width (m)]] >4.9),\"If Bridge Type is Permanent/Portable, Deck Width must be <= 4.9m\",\"\")","v":""}]
[9,null,null,null,null,null,null,null,null,null,null,null,null,null,null,null,null,{"$f":"Table2[[#This Row],[Bridge Supply Cost ($)]]+Table2[[#This Row],[Bridge Planning and Installation (Approach Works) ($)]]","v":0},16,"","",{"$f":"IF(AND(Table2[[#This Row],[Bridge Type]]=\"Log\", Table2[[#This Row],[Width (m)]] > 5.5),\"If Bridge Type is Log, Deck Width must be <= 5.5m\",\"\")","v":""},{"$f":"IF(AND(OR(Table2[[#This Row],[Bridge Type]]=(\"Permanent\"),Table2[[#This Row],[Bridge Type]]=(\"Portable\")), Table2[[#This Row],[Width (m)]] >4.9),\"If Bridge Type is Permanent/Portable, Deck Width must be <= 4.9m\",\"\")","v":""}]
[10,null,null,null,null,null,null,null,null,null,null,null,null,null,null,null,null,{"$f":"Table2[[#This Row],[Bridge Supply Cost ($)]]+Table2[[#This Row],[Bridge Planning and Installation (Approach Works) ($)]]","v":0},16,"","",{"$f":"IF(AND(Table2[[#This Row],[Bridge Type]]=\"Log\", Table2[[#This Row],[Width (m)]] > 5.5),\"If Bridge Type is Log, Deck Width must be <= 5.5m\",\"\")","v":""},{"$f":"IF(AND(OR(Table2[[#This Row],[Bridge Type]]=(\"Permanent\"),Table2[[#This Row],[Bridge Type]]=(\"Portable\")), Table2[[#This Row],[Width (m)]] >4.9),\"If Bridge Type is Permanent/Portable, Deck Width must be <= 4.9m\",\"\")","v":""}]
[11,null,null,null,null,null,null,null,null,null,null,null,null,null,null,null,null,{"$f":"Table2[[#This Row],[Bridge Supply Cost ($)]]+Table2[[#This Row],[Bridge Planning and Installation (Approach Works) ($)]]","v":0},16,"","",{"$f":"IF(AND(Table2[[#This Row],[Bridge Type]]=\"Log\", Table2[[#This Row],[Width (m)]] > 5.5),\"If Bridge Type is Log, Deck Width must be <= 5.5m\",\"\")","v":""},{"$f":"IF(AND(OR(Table2[[#This Row],[Bridge Type]]=(\"Permanent\"),Table2[[#This Row],[Bridge Type]]=(\"Portable\")), Table2[[#This Row],[Width (m)]] >4.9),\"If Bridge Type is Permanent/Portable, Deck Width must be <= 4.9m\",\"\")","v":""}]
[12,null,null,null,null,null,null,null,null,null,null,null,null,null,null,null,null,{"$f":"Table2[[#This Row],[Bridge Supply Cost ($)]]+Table2[[#This Row],[Bridge Planning and Installation (Approach Works) ($)]]","v":0},16,"","",{"$f":"IF(AND(Table2[[#This Row],[Bridge Type]]=\"Log\", Table2[[#This Row],[Width (m)]] > 5.5),\"If Bridge Type is Log, Deck Width must be <= 5.5m\",\"\")","v":""},{"$f":"IF(AND(OR(Table2[[#This Row],[Bridge Type]]=(\"Permanent\"),Table2[[#This Row],[Bridge Type]]=(\"Portable\")), Table2[[#This Row],[Width (m)]] >4.9),\"If Bridge Type is Permanent/Portable, Deck Width must be <= 4.9m\",\"\")","v":""}]
[13,null,null,null,null,null,null,null,null,null,null,null,null,null,null,null,null,{"$f":"Table2[[#This Row],[Bridge Supply Cost ($)]]+Table2[[#This Row],[Bridge Planning and Installation (Approach Works) ($)]]","v":0},16,"","",{"$f":"IF(AND(Table2[[#This Row],[Bridge Type]]=\"Log\", Table2[[#This Row],[Width (m)]] > 5.5),\"If Bridge Type is Log, Deck Width must be <= 5.5m\",\"\")","v":""},{"$f":"IF(AND(OR(Table2[[#This Row],[Bridge Type]]=(\"Permanent\"),Table2[[#This Row],[Bridge Type]]=(\"Portable\")), Table2[[#This Row],[Width (m)]] >4.9),\"If Bridge Type is Permanent/Portable, Deck Width must be <= 4.9m\",\"\")","v":""}]
[14,null,null,null,null,null,null,null,null,null,null,null,null,null,null,null,null,{"$f":"Table2[[#This Row],[Bridge Supply Cost ($)]]+Table2[[#This Row],[Bridge Planning and Installation (Approach Works) ($)]]","v":0},16,"","",{"$f":"IF(AND(Table2[[#This Row],[Bridge Type]]=\"Log\", Table2[[#This Row],[Width (m)]] > 5.5),\"If Bridge Type is Log, Deck Width must be <= 5.5m\",\"\")","v":""},{"$f":"IF(AND(OR(Table2[[#This Row],[Bridge Type]]=(\"Permanent\"),Table2[[#This Row],[Bridge Type]]=(\"Portable\")), Table2[[#This Row],[Width (m)]] >4.9),\"If Bridge Type is Permanent/Portable, Deck Width must be <= 4.9m\",\"\")","v":""}]
[15,null,null,null,null,null,null,null,null,null,null,null,null,null,null,null,null,{"$f":"Table2[[#This Row],[Bridge Supply Cost ($)]]+Table2[[#This Row],[Bridge Planning and Installation (Approach Works) ($)]]","v":0},16,"","",{"$f":"IF(AND(Table2[[#This Row],[Bridge Type]]=\"Log\", Table2[[#This Row],[Width (m)]] > 5.5),\"If Bridge Type is Log, Deck Width must be <= 5.5m\",\"\")","v":""},{"$f":"IF(AND(OR(Table2[[#This Row],[Bridge Type]]=(\"Permanent\"),Table2[[#This Row],[Bridge Type]]=(\"Portable\")), Table2[[#This Row],[Width (m)]] >4.9),\"If Bridge Type is Permanent/Portable, Deck Width must be <= 4.9m\",\"\")","v":""}]
[]
[null,null,null,"Space For Additional Comments:"]
[]
[]
[]
[]
[]
[]
[]
[]
[]
[]
[]
[]
[]
[]
[]
[]
[]
[]
[]
[]
[]
[]
[]
[]
[]
[]
[]
[]
[]
[]
[]
[]
[]
[]
[]
[]
[]
[]
[]
[]
[]
[]
[]
[]
[]
[]
[]
[]
[]
[]
[]
[]
[]
[]
[]
[]
[]
[]
[]
[]
[]
[]
[]
[]
[]
[]
[]
[]
[]
[]
[]
[]
[]
[]
[]
[]
[]
[]
[]
[]
[]
[]
[]
[]
[]
[]
[]
[]
[]
[]
[]
[]
[]
[]
[]
[]
[]
[]
[]
[]
[]
[]
[]
[]
[]
[null,null,null,"lists"]
[null,null,null,"New"]
[null,null,null,"Replacement"]
[]
[null,null,null,"Gravel"]
[null,null,null,"Concrete"]
[null,null,null,"Steel"]
[null,null,null,"Wood"]
[]
[null,null,null,"Permanent/Portable"]
[null,null,null,"Log"]

{"sheet":"Sch.B.7","index":7,"n_rows":12,"n_cols":5,"rows_kept":12,"cut":false,"hidden":false,"merged":[]}
["Schedule B.7"]
["Instructions: Refer to the definitions found within the Main, Primary, Long Form Survey Instructions for 2021 "]
["Wood Culverts (WC)"]
[]
["District","Crib Height (meters)","Culvert Length  (meters)","# Culverts","Total ($)"]
[null,1,3]
[null,1,4]
[null,1,5]
[null,2,3]
[null,2,4]
[null,2,5]
["This workbook / schedule is considered to be confidential once populated with data"]

{"sheet":"Sch.B.8","index":8,"n_rows":19,"n_cols":6,"rows_kept":19,"cut":false,"hidden":false,"merged":[[4,0,4,5],[12,0,12,5]]}
["Schedule B.8"]
["Instructions: Refer to the definitions found within the Main, Primary, Long Form Survey Instructions for 2021 "]
["Off Highway Logging Truck and Lowbeds (OHLTL)"]
[]
["Off Highway Logging Truck"]
["District","Maximum Capacity","Manufacturer","Model Year","Model Name","Hourly rate"]
[]
[]
[]
[]
["Add Rows As Required "]
[]
["Off Highway Lowbed & Truck"]
["District","Maximum Capacity","Manufacturer","Model Year","Model Name","Hourly rate"]
[]
[]
[]
["Add Rows As Required "]
["Note: This workbook / schedule is considered to be confidential once populated with data"]

{"sheet":"SchB.10","index":9,"n_rows":124,"n_cols":22,"rows_kept":124,"cut":false,"hidden":false,"merged":[[0,9,4,14],[27,0,27,22]]}
["2021 Coast Crown Tenure Management Cost Survey Template (cost base 2020)"]
["Ministry of Forests, Lands, Natural Resource Operations and Rural Development, Timber Pricing Branch "]
["Schedule B.10"]
["Barging or Towing to Final Destination"]
[]
["Page _ of _"]
[null,"Name of broker used for barge and tow, if this applies: ",null,null,null,null,null,"Name of forestry manager, if this applies: "]
[]
[null,"Cost Base Year","Licensee","Operation/ Location","Towing or  Barging (select from drop down list)","Location of Local Tie-up Grounds (describe)","Nearest Appraisal Log Dump (refer to Appendix VI of the CAM)","Destination (describe)","Local Tie-up                   Point of Origin Area (select CODE from drop down list)","Distance (km) (refer to the Towing and Barging Distance Table and adjust as required)","Cost ($)  to Transport Logs from Local Tie-up to Destination","Volume (m3) of Logs Transported from Local Tie-up to Destination   ","Total Unit Cost ($/m3) to Transport Logs from Local Tie-up to Destination "]
[null,null,null,null,null,null,null,null,null,null,null,null,{"$f":"K10/L10","v":{"$error":"#DIV/0!"}}]
[null,null,null,null,null,null,null,null,null,null,null,null,{"$f":"K11/L11","v":{"$error":"#DIV/0!"}}]
[null,null,null,null,null,null,null,null,null,null,null,null,{"$f":"K12/L12","v":{"$error":"#DIV/0!"}}]
[null,null,null,null,null,null,null,null,null,null,null,null,{"$f":"K13/L13","v":{"$error":"#DIV/0!"}}]
[null,null,null,null,null,null,null,null,null,null,null,null,{"$f":"K14/L14","v":{"$error":"#DIV/0!"}}]
[null,null,null,null,null,null,null,null,null,null,null,null,{"$f":"K15/L15","v":{"$error":"#DIV/0!"}}]
[null,null,null,null,null,null,null,null,null,null,null,null,{"$f":"K16/L16","v":{"$error":"#DIV/0!"}}]
[null,null,null,null,null,null,null,null,null,null,null,null,{"$f":"K17/L17","v":{"$error":"#DIV/0!"}}]
[null,null,null,null,null,null,null,null,null,null,null,null,{"$f":"K18/L18","v":{"$error":"#DIV/0!"}}]
[null,null,null,null,null,null,null,null,null,null,null,null,{"$f":"K19/L19","v":{"$error":"#DIV/0!"}}]
[null,null,null,null,null,null,null,null,null,null,null,null,{"$f":"K20/L20","v":{"$error":"#DIV/0!"}}]
[null,null,null,null,null,null,null,null,null,null,null,null,{"$f":"K21/L21","v":{"$error":"#DIV/0!"}}]
[null,null,null,null,null,null,null,null,null,null,null,null,{"$f":"K22/L22","v":{"$error":"#DIV/0!"}}]
[null,null,null,null,null,null,null,null,null,null,null,null,{"$f":"K23/L23","v":{"$error":"#DIV/0!"}}]
[null,null,null,null,null,null,null,null,null,null,null,null,{"$f":"K24/L24","v":{"$error":"#DIV/0!"}}]
[null,null,null,null,null,null,null,null,null,null,null,null,{"$f":"K25/L25","v":{"$error":"#DIV/0!"}}]
[]
[]
["Barge & Tow Reference Tables  #1, #2 and #3 (scroll down and right) "]
[]
[null,"Reference:  Table #1",null,null,null,null,null,null,null,null,"Reference:: Table #2",null,null,null,null,null,"Reference:  Table #3"]
[null,"Barging/Towing Cost Survey - Distances",null,null,null,null,null,null,null,null,"Barging/Towing Cost Survey - Distances",null,null,null,null,null,"Barging/Towing Cost Survey - Distances"]
[]
[null,"Barging Points of Origin","To Port Alberni (km)","To Gambier Island (km)",null,"Barging Points of Origin","To Gambier Island (km)",null,null,null,"Points of Origin","Towing To Port Alberni (km)","Barging To Gambier Island (km)",null,null,null,"Towing Points of Origin","To Chemainus (km)","To Gambier Island (km)",null,"Towing Points of Origin","To Gambier Island (km)"]
[]
[null,"Clayoquot Sound:",null,null,null,"Mainland Coast:",null,null,null,null,"Barkley Sound:",null,null,null,null,null,"East Coast Vancouver Island:",null,null,null,"East Coast Vancouver Island:"]
[null,"Rankin Cove",178,{"$f":"C36+242","v":420},null,"Cape Caution",467,null,null,null,"Port Alberni",0,391,null,null,null,"Chemainus",0,69,null,"Port Hardy",432]
[null,"Head of Bedwell Sound",166,{"$f":"C37+242","v":408},null,"Boswell Inlet",467,null,null,null,"China Creek",11,380,null,null,null,"Cowichan Bay",27,96,null,"Port McNeill",397]
[null,"Cypre River",149,{"$f":"C38+242","v":391},null,"Head of Rivers Inlet",509,null,null,null,"Coleman Creek",28,363,null,null,null,"Ladysmith",14,73,null,"Beaver Cove",379]
[null,"Steamer Cove",180,{"$f":"C39+242","v":422},null,"Moses Inlet",508,null,null,null,"Sarita River",50,341,null,null,null,"Nanaimo",32,55,null,"Naka Creek",346]
[null,null,null,null,null,"Nootum River",530,null,null,null,"Spencer Creek",33,358,null,null,null,null,null,null,null,"Eve River",335]
[null,"Nootka Sound:",null,null,null,"Kwatna Bay",572,null,null,null,"Toquart Bay",74,355,null,null,null,"Southwest Coast Vancouver Island:",null,null,null,"Southeast Bay",328]
[null,"Blowhole Bay",239,{"$f":"C42+242","v":481},null,"Bella Coola",608,null,null,null,"Uchucklesit",45,358,null,null,null,"Jordan River",144,213,null,"Kelsey Bay",248]
[null,"Gold River",248,{"$f":"C43+242","v":490},null,"Head of South Bentinck Arm",633,null,null,null,"Ucluelet",84,349,null,null,null,"Sooke",123,192,null,"Menzies Bay",185]
[null,"Head Bay",238,{"$f":"C44+242","v":480},null,"Campbell Island",552,null,null,null,null,null,null,null,null,null,"Victoria",86,155,null,"Courtenay",130]
[null,"Houston River",233,{"$f":"C45+242","v":475},null,"Ocean Falls",562,null,null,null,null,null,null,null,null,null,null,null,null,null,"Northwest Bay",68]
[null,"Kendrick Inlet",224,{"$f":"C46+242","v":466},null,"Elcho Harbour",585]
[null,"McCurdy Creek",243,{"$f":"C47+242","v":485},null,"Kimsquit",656,null,null,null,null,null,null,null,null,null,"Towing Points of Origin","To Pitt River Bridge (km)","To Gambier Island (km)",null,"Mainland Coast (North Island District):"]
[null,"Mooyah River",223,{"$f":"C48+242","v":465},null,"Klemtu",606,null,null,null,null,null,null,null,null,null,"Chilliwack",75,143,null,"Mereworth Sound",491]
[null,"Plumper Harbour",221,{"$f":"C49+242","v":463},null,null,null,null,null,null,null,null,null,null,null,null,"Foot Harrison Lake",95,163,null,"Seymour Inlet",534]
[null,"Tahsis",250,{"$f":"C50+242","v":492},null,"North Coast:",null,null,null,null,null,null,null,null,null,null,"Foot of Pitt Lake",13,81,null,"Drury Inlet",425]
[null,"Tlupana River",237,{"$f":"C51+242","v":479},null,"Kemano Bay",821,null,null,null,null,null,null,null,null,null,"Harrison Bay",84,152,null,"Wakeman Sound",437]
[null,"Tsowwin",232,{"$f":"C52+242","v":474},null,"Bishop Bay",818,null,null,null,null,null,null,null,null,null,"Hatzic",36,104,null,"Head of Kingcome Inlet",442]
[null,null,null,null,null,"Weewanie Creek",765,null,null,null,null,null,null,null,null,null,"Head Harrison Lake",155,223,null,"Mouth of Kingcome Inlet",414]
[null,"Esperanza Inlet:",null,null,null,"Kumealon Inlet",821,null,null,null,null,null,null,null,null,null,"Head Pitt Lake",44,112,null,"Port Elizabeth",406]
[null,"Barr Creek",268,{"$f":"C55+242","v":510},null,"Porcher Island",858,null,null,null,null,null,null,null,null,null,"Mid Harrison Lake",126,194,null,"Thompson Sound",436]
[null,"Espinosa Inlet",266,{"$f":"C56+242","v":508},null,"Prince Rupert",879,null,null,null,null,null,null,null,null,null,"Pitt River Bridge",0,68,null,"Head of Knight Inlet",504]
[null,"Hecate Channel",249,{"$f":"C57+242","v":491},null,"Tuck Inlet",907,null,null,null,null,null,null,null,null,null,"Silverhope Creek",106,174,null,"Mouth of Knight Inlet",415]
[null,"Port Eliza",253,{"$f":"C58+242","v":495},null,"Head Work Channel",989,null,null,null,null,null,null,null,null,null,"Whonnock",23,91,null,"Port Harvey",344]
[null,"Zeballos",278,{"$f":"C59+242","v":520},null,"Scotia River",891]
[null,null,null,null,null,"Kwinamass River",962,null,null,null,null,null,null,null,null,null,null,null,null,null,"Mainland Coast (Campbell River District):"]
[null,"Kyuquot Sound:",null,null,null,"Khutzeymateen Inlet",955,null,null,null,null,null,null,null,null,null,null,null,null,null,"Head Loughborough Inlet",418]
[null,"Easy Inlet",291,{"$f":"C62+242","v":533},null,"Nass Bay",1004,null,null,null,null,null,null,null,null,null,null,null,null,null,"Port Neville",401]
[null,null,null,null,null,"Alice Arm",1070,null,null,null,null,null,null,null,null,null,null,null,null,null,"Forward Harbour",389]
[null,"Checleset Bay:",null,null,null,"Stewart",1116,null,null,null,null,null,null,null,null,null,null,null,null,null,"Mouth Loughborough Inlet",384]
[null,"Ououkinsh Inlet",314,{"$f":"C65+242","v":556},null,"Haida Gwaii:",null,null,null,null,null,null,null,null,null,null,null,null,null,null,"Phillips Arm",365]
[null,null,null,null,null,"Tasu Sound",831,null,null,null,null,null,null,null,null,null,null,null,null,null,"Frederick Arm",363]
[null,"Quatsino Sound:",null,null,null,"Sewell Inlet",808]
[null,"Cleagh Creek",372,{"$f":"C68+242","v":614},null,"Beattie Anchorage",783,null,null,null,null,null,null,null,null,null,null,null,null,null,"Mainland Coast (Sunshine Coast District):"]
[null,"Coal Harbour",396,{"$f":"C69+242","v":638},null,"South Bay",817,null,null,null,null,null,null,null,null,null,null,null,null,null,"Head of Bute Inlet",267]
[null,"Holberg",424,{"$f":"C70+242","v":666},null,"Alliford Bay",807,null,null,null,null,null,null,null,null,null,null,null,null,null,"Mouth of Bute Inlet",198]
[null,"Hushamu Creek",411,{"$f":"C71+242","v":653},null,"Skidegate Inlet",816,null,null,null,null,null,null,null,null,null,null,null,null,null,"Head of Toba Inlet",220]
[null,"Ingersoll",382,{"$f":"C72+242","v":624},null,"Honna River",812,null,null,null,null,null,null,null,null,null,null,null,null,null,"Mouth of Toba Inlet",184]
[null,"Jeune Landing",393,{"$f":"C73+242","v":635},null,"Rennell Sound",915,null,null,null,null,null,null,null,null,null,null,null,null,null,"Teakerne Arm",156]
[null,"Koprino Harbour",365,{"$f":"C74+242","v":607},null,"Ferguson Bay",946,null,null,null,null,null,null,null,null,null,null,null,null,null,"Theodosia Inlet",153]
[null,"Kultus Cove",384,{"$f":"C75+242","v":626},null,"McClinton Bay",999,null,null,null,null,null,null,null,null,null,null,null,null,null,"Powell River",115]
[null,"Winter Harbour",361,{"$f":"C76+242","v":603},null,"Dinan Bay",975,null,null,null,null,null,null,null,null,null,null,null,null,null,"Stillwater",92]
[null,null,null,null,null,"Naden Harbour",971,null,null,null,null,null,null,null,null,null,null,null,null,null,"Head of Jervis Inlet",174]
[null,null,null,null,null,null,null,null,null,null,null,null,null,null,null,null,null,null,null,null,"Mouth of Jervis Inlet",93]
[null,null,null,null,null,null,null,null,null,null,null,null,null,null,null,null,null,null,null,null,"Agamemnon",82]
[null,null,null,null,null,null,null,null,null,null,null,null,null,null,null,null,null,null,null,null,"Head of Sechelt Inlet",122]
[null,null,null,null,null,null,null,null,null,null,null,null,null,null,null,null,null,null,null,null,"McNab Creek",17]
[null,null,null,null,null,null,null,null,null,null,null,null,null,null,null,null,null,null,null,null,"Gambier",0]
[]
[null,null,null,null,null,null,null,null,null,null,null,null,null,null,null,null,null,null,null,null,"Squamish",38]
[null,null,null,null,null,null,null,null,null,null,null,null,null,null,null,null,null,null,null,null,"Indian Arm",64]
[null,null,null,null,null,null,null,null,null,null,null,null,null,null,null,null,null,null,null,null,"Second Narrows",43]
[]
[]
[]
[]
[null,"Lists"]
[null,"Towing or Barging "]
[null,"Towing"]
[null,"Barging"]
[null,"Point of Origin Area                             Code","Code"]
[null,"Barkley-Clayoquot                                   BKCL","BKCL"]
[null,"Bute Inlet                                                 BUTE","BUTE"]
[null,"Chilliwack-Silverhope                             CHSH","CHSH"]
[null,"Courtenay-Comox                                   COCO","COCO"]
[null,"Dewdney                                                  DEWD","DEWD"]
[null,"Drury-Seymour                                        DRSE","DRSE"]
[null,"Esperanza                                                 ESPE","ESPE"]
[null,"Gilford-Knight                                         GKIN","GKIN"]
[null,"Graham Island                                          GRIS","GRIS"]
[null,"Harrison                                                   HARR","HARR"]
[null,"Jervis-Sechelt                                           JEIS","JEIS"]
[null,"Juan de Fuca                                            JUDF","JUDF"]
[null,"Kelsey-Adam                                           KEAD","KEAD"]
[null,"Kokish                                                      KOKI","KOKI"]
[null,"Lower Mainland                                      LOMD","LOMD"]
[null,"Menzies-Sayward Forest                         MESF","MESF"]
[null,"Mid-Coast                                                MIDC","MIDC"]
[null,"Nahatlatch                                                NAHT","NAHT"]
[null,"Nootka Sound                                          NOSO","NOSO"]
[null,"North Coast                                              NTHC","NTHC"]
[null,"Pitt Meadows                                           PIME","PIME"]
[null,"Port McNeill-Hardy                                 POMH","POMH"]
[null,"Quatsino Sound                                        QUSO","QUSO"]
[null,"Sloquet                                                     SLOQ","SLOQ"]
[null,"Southeast Vancouver Island                    SOVI","SOVI"]
[null,"Sproat Lake                                              SPLK","SPLK"]
[null,"Squamish-Pemberton                               SQPM","SQPM"]
[null,"Sunshine Coast                                        SUCO","SUCO"]
[null,"Thurlow                                                   THUR","THUR"]

{"sheet":"Sch.B9&B.11&B.12&B.13","index":10,"n_rows":31,"n_cols":14,"rows_kept":31,"cut":false,"hidden":false,"merged":[[26,0,30,0],[4,2,4,13],[22,0,25,0],[18,0,21,0],[6,0,12,0],[13,0,17,0]]}
["Main Survey Schedules B.9 & B.11 & B.12 & B.13"]
["Instructions: Refer to the definitions found within the Main, Primary, Long Form Survey Instructions for 2021 to complete this workbook tab"]
["Specified Operations: Inland Water Ways; Heli Single Standing Stem; Tree Crown Modification; Skyline "]
[]
["Specified Operation",null,"District $ Costs "]
["Cost Base 2020 ",null,"DCR-NonEBM","DCR-EBM","DCK","DNC-EBM","DNI-NonEBM","DNI-EBM","DHG-EBM","DSI-NonEBM","DSI-Clay^","DSQ","DSC","Total "]
["Inland Water Ways (Schedule B.9)","Location of water"]
[null,"Volume towed (m3)"]
[null,"Distance towed (km)"]
[null,"Dump and boom ($)"]
[null,"Lake tow ($)"]
[null,"Dewater and reload ($)"]
[null,"Total ($)",{"$f":"C10+C12","v":0},{"$f":"D10+D12","v":0},0,0,0,0,0,0,0,0,0,0]
["Heli Single Standing Stem Selection (Schedule B.11)","Standard heli costs within HSSSS contract ($) *"]
[null,"Specific HSSSS (see CAM Section .4.4.4) costs ($)"]
[null,"HSSSS Volume(m3) "]
[null,"Total cost of HSSSS contract(s) ($)"]
[null,"$ / m3",{"$f":"C15/C16","v":{"$error":"#DIV/0!"}},{"$f":"D15/D16","v":{"$error":"#DIV/0!"}},{"$error":"#DIV/0!"},{"$error":"#DIV/0!"},{"$error":"#DIV/0!"},{"$error":"#DIV/0!"},{"$error":"#DIV/0!"},{"$error":"#DIV/0!"},{"$error":"#DIV/0!"},{"$error":"#DIV/0!"},{"$error":"#DIV/0!"},{"$error":"#DIV/0!"}]
["Old Growth  Tree Crown Modification (Schedule B.13)","Total cost $"]
[null,"Area treated (ha)"]
[null,"# Trees modified "]
[null,"$ / Tree ",{"$f":"C19/C21","v":{"$error":"#DIV/0!"}},{"$f":"D19/D21","v":{"$error":"#DIV/0!"}},{"$error":"#DIV/0!"},{"$error":"#DIV/0!"},{"$error":"#DIV/0!"},{"$error":"#DIV/0!"},{"$error":"#DIV/0!"},{"$error":"#DIV/0!"},{"$error":"#DIV/0!"},{"$error":"#DIV/0!"},{"$error":"#DIV/0!"},{"$error":"#DIV/0!"}]
["Second Growth  Tree Crown Modification (Schedule B.13)","Total cost $"]
[null,"Area treated (ha)"]
[null,"# Trees modified "]
[null,"$ / Tree ",{"$f":"C24/C25","v":{"$error":"#DIV/0!"}},{"$f":"D24/D25","v":{"$error":"#DIV/0!"}},{"$error":"#DIV/0!"},{"$error":"#DIV/0!"},{"$error":"#DIV/0!"},{"$error":"#DIV/0!"},{"$error":"#DIV/0!"},{"$error":"#DIV/0!"},{"$error":"#DIV/0!"},{"$error":"#DIV/0!"},{"$error":"#DIV/0!"},{"$error":"#DIV/0!"}]
["Skyline (Schedule B.12)","Cut-block volume (m3) "]
[null,"Skyline: volume(m3) "]
[null,"# Intermediate supports"]
[null,"Total cost $"]
[null,"$ / m3",{"$f":"C30/C28","v":{"$error":"#DIV/0!"}},{"$f":"D30/D28","v":{"$error":"#DIV/0!"}},{"$f":"E30/E28","v":{"$error":"#DIV/0!"}},{"$error":"#DIV/0!"},{"$f":"G30/G28","v":{"$error":"#DIV/0!"}},{"$f":"H30/H28","v":{"$error":"#DIV/0!"}},{"$error":"#DIV/0!"},{"$error":"#DIV/0!"},{"$error":"#DIV/0!"},{"$error":"#DIV/0!"},{"$error":"#DIV/0!"},{"$error":"#DIV/0!"}]

{"sheet":"Sch.B.14","index":11,"n_rows":162,"n_cols":10,"rows_kept":162,"cut":false,"hidden":false,"merged":[[151,1,151,2],[29,1,29,2],[34,2,34,8],[37,2,37,8],[40,2,40,8],[43,2,43,8],[46,2,46,8],[52,1,52,2],[74,1,74,2],[95,1,95,2],[108,1,108,2],[117,1,117,2]]}
["Schedule B.14"]
["Instructions: Refer to the definitions found within  the Main, Primary, Long Form Survey Instructions for 2021 "]
["Destumping For Root Disease Control (DRDC) with Biogeoclimatic Ecosystem Classification (BEC) "]
[]
["Company Name"]
[]
["Submitter Name(s)"]
[]
["District \n(EBM/NON-EBM)            (drop-down list)\n","Timber Mark","BEC/SubZone/ Variant\n(drop-down list)","Relevant Production Volume (m3) ","Machinery Hours Onsite: Include Labour; Mob/ Demob Total","Area Treated\n (ha)","Total Cost \n($)","$/ha","$/m3","Comments "]
[null,null,null,null,null,null,null,{"$f":"G10/F10","v":{"$error":"#DIV/0!"}},{"$f":"G10/D10","v":{"$error":"#DIV/0!"}}]
[null,null,null,null,null,null,null,{"$f":"G11/F11","v":{"$error":"#DIV/0!"}},{"$f":"G11/D11","v":{"$error":"#DIV/0!"}}]
[null,null,null,null,null,null,null,{"$error":"#DIV/0!"},{"$error":"#DIV/0!"}]
[null,null,null,null,null,null,null,{"$error":"#DIV/0!"},{"$error":"#DIV/0!"}]
[null,null,null,null,null,null,null,{"$error":"#DIV/0!"},{"$error":"#DIV/0!"}]
[null,null,null,null,null,null,null,{"$error":"#DIV/0!"},{"$error":"#DIV/0!"}]
[null,null,null,null,null,null,null,{"$error":"#DIV/0!"},{"$error":"#DIV/0!"}]
["Copy & Insert Rows "]
[]
["Note: To eliminate double counting with Sch B2 , transfer the totals from this Schedule once populated in to Sch B2  and make adjustments to the totals as required."]
["This workbook / schedule is considered to be confidential once populated with data"]
[]
[]
[]
[]
[]
[]
[]
["Please do not adjust the following tables "]
["District List ","BEC Variant List"]
["DCR-NonEBM","Chilliwack Natural Resource District"]
["DCR-EBM","CDF mm"]
["DCK","CMA unp"]
["DNC-EBM","CWH dm"]
["DNI-NonEBM","CWH ds 1"]
["DNI-EBM","CWH ms 1"]
["DHG-EBM","CWH vm 1"]
["DSI-NonEBM","CWH vm 2"]
["DSI-Clay^","CWH xm 1"]
["DSQ","ESSFdc 2"]
["DSC","ESSFdcp"]
[null,"ESSFdcw"]
[null,"ESSFmw 1"]
[null,"ESSFmw 2"]
[null,"ESSFmwp"]
[null,"ESSFmww"]
[null,"IDF dk 2"]
[null,"IDF ww"]
[null,"IDF ww 1"]
[null,"IMA un"]
[null,"IMA unp"]
[null,"MH  mm 1"]
[null,"MH  mm 2"]
[null,"Sea to Sky Natural Resource District"]
[null,"CMA unp"]
[null,"CWH dm"]
[null,"CWH ds 1"]
[null,"CWH ms 1"]
[null,"CWH vm 1"]
[null,"CWH vm 2"]
[null,"CWH xm 1"]
[null,"ESSFdv 1"]
[null,"ESSFdvp"]
[null,"ESSFdvw"]
[null,"ESSFmw 2"]
[null,"ESSFmwp"]
[null,"ESSFmww"]
[null,"IDF dc"]
[null,"IDF ww"]
[null,"IDF ww 1"]
[null,"IMA un"]
[null,"IMA unp"]
[null,"MH  mm 1"]
[null,"MH  mm 2"]
[null,"MS  mw 2"]
[null,"Sunshine Coast Natural Resource District"]
[null,"BAFAun"]
[null,"CDF mm"]
[null,"CMA un"]
[null,"CMA unp"]
[null,"CWH dm"]
[null,"CWH ds 1"]
[null,"CWH mm 1"]
[null,"CWH ms 1"]
[null,"CWH vm 1"]
[null,"CWH vm 2"]
[null,"CWH xm 1"]
[null,"CWH xm 2"]
[null,"ESSFmw"]
[null,"ESSFmwp"]
[null,"ESSFxvp"]
[null,"IMA un"]
[null,"IMA unp"]
[null,"MH  mm 1"]
[null,"MH  mm 2"]
[null,"MH  mmp"]
[null,"Campbell River Natural Resource District"]
[null,"CDF mm"]
[null,"CMA unp"]
[null,"CWH dm"]
[null,"CWH mm 1"]
[null,"CWH mm 2"]
[null,"CWH vh 1"]
[null,"CWH vm 1"]
[null,"CWH vm 2"]
[null,"CWH xm 1"]
[null,"CWH xm 2"]
[null,"MH  mm 1"]
[null,"MH  mm 2"]
[null,"Haida Gwaii Natural Resource District"]
[null,"CMA wh"]
[null,"CWH vh 1"]
[null,"CWH vh 2"]
[null,"CWH vh 3"]
[null,"CWH wh 1"]
[null,"CWH wh 2"]
[null,"MH  wh"]
[null,"MH  whp"]
[null,"North Island - Central Coast Natural Resource District"]
[null,"BAFAun"]
[null,"BAFAunp"]
[null,"CMA un"]
[null,"CMA unp"]
[null,"CWH dm"]
[null,"CWH ds 2"]
[null,"CWH ms 2"]
[null,"CWH vh 1"]
[null,"CWH vh 2"]
[null,"CWH vm 1"]
[null,"CWH vm 2"]
[null,"CWH ws 2"]
[null,"CWH xm 2"]
[null,"ESSFmc"]
[null,"ESSFmcp"]
[null,"ESSFmk"]
[null,"ESSFmkp"]
[null,"ESSFmw"]
[null,"ESSFmwp"]
[null,"ESSFxv 1"]
[null,"ESSFxvp"]
[null,"IDF dw"]
[null,"IDF ww"]
[null,"IMA unp"]
[null,"MH  mm 1"]
[null,"MH  mm 2"]
[null,"MH  mmp"]
[null,"MH  wh 1"]
[null,"MS  dc 2"]
[null,"MS  xv"]
[null,"SBPSmc"]
[null,"SBPSxc"]
[null,"SBS mc 2"]
[null,"South Island Natural Resource District"]
[null,"CDF mm"]
[null,"CMA unp"]
[null,"CWH mm 1"]
[null,"CWH mm 2"]
[null,"CWH vh 1"]
[null,"CWH vm 1"]
[null,"CWH vm 2"]
[null,"CWH xm 1"]
[null,"CWH xm 2"]
[null,"MH  mm 1"]

{"sheet":"Comments","index":12,"n_rows":3,"n_cols":1,"rows_kept":3,"cut":false,"hidden":false,"merged":[]}
["Write any additional comments or clarifications to the cost survey  within this workbook tab"]
[]
["Survey Reporting Period; January 1, to December 31, of the Reporting Year. Report each of 2017, 2018, 2019 and 2020 on separate worktabs within the workbook."]